bitfinex/quotes_BTCUSD_20251102
["timestamp","ask_amount","ask_price","bid_price","bid_amount"]
[1762102008800,0.003,110160.0,110150.0,0.23256235]
[1762102009344,0.003,110160.0,110150.0,0.25984225]
[1762102010161,0.56361969,110180.0,110170.0,0.18153762]
[1762102010578,0.56361969,110180.0,110170.0,0.19706762]
[1762102010810,0.56361969,110180.0,110170.0,0.18153762]
[1762102011260,0.56461969,110180.0,110170.0,0.18153762]
[1762102012153,0.57061969,110180.0,110170.0,0.18153762]
[1762102014540,0.19877772,110180.0,110170.0,0.18153762]
[1762102014760,0.57061969,110180.0,110170.0,0.18153762]
[1762102015235,0.38909855,110180.0,110170.0,0.20874762]
[1762102015461,0.38909855,110180.0,110170.0,0.23165762]
[1762102015875,0.38909855,110180.0,110170.0,0.20874762]
[1762102016310,0.57061969,110180.0,110170.0,0.19321762]
[1762102016481,0.38809855,110180.0,110170.0,0.20874762]
[1762102016688,0.38209855,110180.0,110170.0,0.23165762]
[1762102016870,0.38509855,110180.0,110170.0,0.23165762]
[1762102019055,0.01325658,110180.0,110170.0,0.23165762]
[1762102024081,0.01325658,110180.0,110170.0,0.27414529]
[1762102024082,0.00426515,110180.0,110170.0,0.27414529]
[1762102024312,0.00426515,110180.0,110170.0,0.64598726]
[1762102025485,0.00426515,110180.0,110170.0,0.64998726]
[1762102025932,0.00126515,110180.0,110170.0,0.64998726]
[1762102026821,0.00126515,110180.0,110170.0,0.67726148]
[1762102027242,0.00126515,110180.0,110170.0,0.30841951]
[1762102027456,0.00126515,110180.0,110170.0,0.68026148]
[1762102028090,0.00126515,110180.0,110170.0,0.30841951]
[1762102030041,0.00126515,110180.0,110170.0,0.26593184]
[1762102031560,0.00126515,110180.0,110170.0,0.23865762]
[1762102033536,0.55462826,110180.0,110170.0,0.03421]
[1762102034165,0.55462826,110180.0,110170.0,0.007]
[1762102034819,0.55462826,110180.0,110170.0,0.003]
[1762102035062,0.64444727,110180.0,110170.0,0.003]
[1762102035271,0.64444727,110180.0,110170.0,0.002]
[1762102035473,0.18153762,110170.0,110160.0,0.01168]
[1762102035752,0.55337959,110170.0,110160.0,0.02723]
[1762102035961,0.55337959,110170.0,110160.0,0.2087841]
[1762102036718,0.55337959,110170.0,110160.0,0.2326741]
[1762102036983,0.55337959,110170.0,110160.0,0.2346741]
[1762102037513,0.55337959,110170.0,110160.0,0.002]
[1762102037963,0.55337959,110170.0,110160.0,0.01755]
[1762102038835,0.55337959,110170.0,110160.0,0.0298]
[1762102042691,0.18278675,110180.0,110170.0,0.18153762]
[1762102042907,0.00126515,110180.0,110170.0,0.25159138]
[1762102043120,0.00126515,110180.0,110170.0,0.23343762]
[1762102044378,0.00126515,110180.0,110170.0,0.31354599]
[1762102044811,0.00426515,110180.0,110170.0,0.31354599]
[1762102045414,0.00126515,110180.0,110170.0,0.31354599]
[1762102045616,0.18278629,110180.0,110170.0,0.20933762]
[1762102045896,0.18578629,110180.0,110170.0,0.21333762]
[1762102046247,0.18278629,110180.0,110170.0,0.0318]
[1762102046451,0.18278629,110180.0,110170.0,0.23750762]
[1762102047270,0.18278629,110180.0,110170.0,0.05597]
[1762102047523,0.18278629,110180.0,110170.0,0.23750762]
[1762102047690,0.18278629,110180.0,110170.0,0.24050762]
[1762102048112,0.18278629,110180.0,110170.0,0.05897]
[1762102049158,0.18278629,110180.0,110170.0,0.24050762]
[1762102049647,0.18278629,110180.0,110170.0,0.05897]
[1762102049881,0.18278629,110180.0,110170.0,0.24050762]
[1762102050460,0.18278629,110180.0,110170.0,0.05897]
[1762102050663,0.18278629,110180.0,110170.0,0.24050762]
[1762102051066,0.18278629,110180.0,110170.0,0.05897]
[1762102051611,0.18278629,110180.0,110170.0,0.24050762]
[1762102051771,0.18278629,110180.0,110170.0,0.05897]
[1762102052391,0.18278629,110180.0,110170.0,0.24050762]
[1762102052604,0.00126515,110180.0,110170.0,0.24050762]
[1762102052777,0.18278629,110180.0,110170.0,0.24050762]
[1762102055653,0.00126515,110180.0,110170.0,0.24050762]
[1762102055880,0.00126515,110180.0,110170.0,0.28393879]
[1762102059925,0.00126515,110180.0,110170.0,0.24050762]
[1762102062347,0.18278629,110180.0,110170.0,0.24050762]
[1762102064097,0.55462826,110180.0,110170.0,0.24050762]
[1762102064306,0.18278629,110180.0,110170.0,0.24050762]
[1762102067264,0.18278629,110180.0,110170.0,0.05897]
[1762102067518,0.18278629,110180.0,110170.0,0.24050762]
[1762102068232,0.18278629,110180.0,110170.0,0.05897]
[1762102068470,0.5544923,110180.0,110170.0,0.05897]
[1762102068928,0.00126515,110180.0,110170.0,0.24050762]
[1762102069604,0.18278629,110180.0,110170.0,0.24050762]
[1762102069993,0.5544923,110180.0,110170.0,0.24050762]
[1762102070325,0.5544923,110180.0,110170.0,0.05897]
[1762102070937,0.18278629,110180.0,110170.0,0.05897]
[1762102071131,0.5544923,110180.0,110170.0,0.05897]
[1762102071334,0.5544923,110180.0,110170.0,0.24050762]
[1762102071947,0.37297116,110180.0,110170.0,0.24050762]
[1762102072175,0.5544923,110180.0,110170.0,0.24050762]
[1762102072377,0.37297116,110180.0,110170.0,0.24050762]
[1762102073227,0.00126515,110180.0,110170.0,0.32110939]
[1762102073458,0.00126515,110180.0,110170.0,0.6928154]
[1762102075785,0.00126515,110180.0,110170.0,1.0328154]
[1762102076219,0.00126515,110180.0,110170.0,1.06008813]
[1762102078495,0.00126515,110180.0,110170.0,1.09627041]
[1762102083379,0.00126515,110180.0,110170.0,0.68838212]
[1762102085733,0.00126515,110180.0,110170.0,1.06008813]
[1762102088379,0.00126515,110180.0,110170.0,1.0328154]
[1762102088587,0.00126515,110180.0,110170.0,0.66110939]
[1762102089199,0.00126515,110180.0,110170.0,0.58050762]
[1762102090180,0.00126515,110180.0,110170.0,0.24050762]
[1762102094674,0.37297116,110180.0,110170.0,0.24050762]
[1762102094892,0.00126515,110180.0,110170.0,0.24050762]
[1762102095321,0.18278629,110180.0,110170.0,0.24050762]
[1762102096344,0.00126515,110180.0,110170.0,0.24050762]
[1762102098744,0.00126515,110180.0,110170.0,0.32383699]
[1762102101659,0.00126515,110180.0,110170.0,0.695543]
[1762102102175,0.00126515,110180.0,110170.0,0.32383699]
[1762102103646,0.00126515,110180.0,110170.0,0.695543]
[1762102108665,0.00126515,110180.0,110170.0,0.72281812]
[1762102117378,0.00126515,110180.0,110170.0,0.35111211]
[1762102117608,0.00126515,110180.0,110170.0,0.72281812]
[1762102128497,0.00126515,110180.0,110170.0,0.72269792]
[1762102129290,0.00126515,110180.0,110170.0,0.35111211]
[1762102132444,0.00126515,110180.0,110170.0,0.72269792]
[1762102132987,0.00126515,110180.0,110170.0,0.35111211]
[1762102134398,0.00126515,110180.0,110170.0,0.72269792]
[1762102134878,0.00126515,110180.0,110170.0,0.35111211]
[1762102136133,0.00126515,110180.0,110170.0,0.26778274]
[1762102137790,0.00126515,110180.0,110170.0,0.63936855]
[1762102139213,0.00126515,110180.0,110170.0,0.26778274]
[1762102139435,0.00126515,110180.0,110170.0,0.63936855]
[1762102143017,0.00126515,110180.0,110170.0,0.26778274]
[1762102143221,0.00126515,110180.0,110170.0,0.68552723]
[1762102143438,0.00126515,110180.0,110170.0,0.31394142]
[1762102143632,0.00126515,110180.0,110170.0,0.68552723]
[1762102145353,0.00126515,110180.0,110170.0,0.31394142]
[1762102151635,0.00126515,110180.0,110170.0,0.2866663]
[1762102155773,0.00126515,110180.0,110170.0,0.3139399]
[1762102159371,0.5543721,110180.0,110170.0,0.21633762]
[1762102160022,0.5543721,110180.0,110170.0,0.007]
[1762102160235,0.5543721,110180.0,110170.0,0.18853762]
[1762102160464,0.5543721,110180.0,110170.0,0.007]
[1762102160699,0.5543721,110180.0,110170.0,0.004]
[1762102161350,0.58165061,110180.0,110170.0,0.18553762]
[1762102161569,0.58165061,110180.0,110170.0,0.18153762]
[1762102161773,0.5543721,110180.0,110170.0,0.21062762]
[1762102162643,0.5543721,110180.0,110170.0,0.02909]
[1762102163333,0.58165061,110180.0,110170.0,0.21062762]
[1762102164835,0.58165061,110180.0,110170.0,0.02909]
[1762102165516,0.58165061,110180.0,110170.0,0.002]
[1762102166970,0.67146962,110180.0,110170.0,0.002]
[1762102168058,0.1815541,110160.0,110150.0,0.03612177]
[1762102168496,0.1815541,110160.0,110150.0,0.05173177]
[1762102168708,0.1815541,110160.0,110150.0,0.20903235]
[1762102168917,0.1815541,110160.0,110150.0,0.23330235]
[1762102169547,0.1815541,110160.0,110150.0,0.23730235]
[1762102169752,0.1815541,110160.0,110150.0,0.05573177]
[1762102169959,0.20424836,110160.0,110150.0,0.21603235]
[1762102170581,0.20424836,110160.0,110150.0,0.24030235]
[1762102172504,0.1815541,110160.0,110150.0,0.24030235]
[1762102176981,0.58042023,110170.0,110150.0,0.24030235]
[1762102177605,0.58042023,110170.0,110160.0,0.01561]
[1762102177808,0.58042023,110170.0,110160.0,0.1971641]
[1762102178213,0.58042023,110170.0,110160.0,0.01561]
[1762102178647,0.1815541,110160.0,110150.0,0.22269235]
[1762102178859,0.1815541,110160.0,110150.0,0.21769235]
[1762102179058,0.1815541,110160.0,110150.0,0.23330235]
[1762102179759,0.20424836,110160.0,110150.0,0.23330235]
[1762102179954,0.1815541,110160.0,110150.0,0.23330235]
[1762102180186,0.1815541,110160.0,110150.0,0.23630235]
[1762102181203,0.1815541,110160.0,110150.0,0.24030235]
[1762102182795,0.57583417,110160.0,110150.0,0.00713177]
[1762102183001,1.04227546,110160.0,110150.0,0.00713177]
[1762102183177,0.67068965,110160.0,110150.0,0.00713177]
[1762102183802,1.04227546,110160.0,110150.0,0.00413177]
[1762102184007,0.67068965,110160.0,110150.0,0.00013177]
[1762102184436,0.75591388,110160.0,110150.0,0.00013177]
[1762102185050,0.78252662,110160.0,110150.0,0.00013177]
[1762102185477,0.69730239,110160.0,110150.0,0.00013177]
[1762102186340,0.67368965,110160.0,110150.0,0.00013177]
[1762102189027,0.58342472,110160.0,110150.0,0.18170235]
[1762102189871,0.40187062,110160.0,110150.0,0.18170235]
[1762102190036,0.03028481,110160.0,110150.0,0.18170235]
[1762102190416,0.40212698,110160.0,110150.0,0.18170235]
[1762102190810,0.58368108,110160.0,110150.0,0.18170235]
[1762102191717,0.40212698,110160.0,110150.0,0.18170235]
[1762102191922,0.58368108,110160.0,110150.0,0.18170235]
[1762102192652,0.40212698,110160.0,110150.0,0.18170235]
[1762102193720,0.58368108,110160.0,110150.0,0.18170235]
[1762102193896,0.21183891,110160.0,110150.0,0.18170235]
[1762102194116,0.58368108,110160.0,110150.0,0.18170235]
[1762102194464,0.40212698,110160.0,110150.0,0.18170235]
[1762102194877,0.40212698,110160.0,110150.0,0.20993235]
[1762102196296,0.40212698,110160.0,110150.0,0.23472235]
[1762102196297,0.03028481,110160.0,110150.0,0.23472235]
[1762102197517,0.02728481,110160.0,110150.0,0.23472235]
[1762102197925,0.02728481,110160.0,110150.0,0.23672235]
[1762102199821,0.89338019,110170.0,110160.0,0.1815541]
[1762102200050,0.92066352,110170.0,110160.0,0.1815541]
[1762102200275,0.1815541,110160.0,110150.0,0.01401177]
[1762102200507,0.55339627,110160.0,110150.0,0.00213177]
[1762102200719,0.55339627,110160.0,110150.0,0.00013177]
[1762102201390,0.3991255,110160.0,110150.0,0.18170235]
[1762102201603,0.5806796,110160.0,110150.0,0.18370235]
[1762102202022,0.3991255,110160.0,110150.0,0.20005235]
[1762102202224,0.5806796,110160.0,110150.0,0.20005235]
[1762102202848,0.3991255,110160.0,110150.0,0.20005235]
[1762102203048,0.5806796,110160.0,110150.0,0.21193235]
[1762102203257,0.5806796,110160.0,110150.0,0.23672235]
[1762102203465,0.5806796,110160.0,110150.0,0.21193235]
[1762102204738,0.5806796,110160.0,110150.0,0.00213177]
[1762102206715,0.98771777,110160.0,110150.0,0.00213177]
[1762102211523,0.96043444,110160.0,110150.0,0.00213177]
[1762102212052,0.96043444,110160.0,110150.0,0.02941691]
[1762102213218,0.96043444,110160.0,110150.0,0.02741691]
[1762102214105,0.96343444,110160.0,110150.0,0.02741691]
[1762102215143,0.92823844,110160.0,110150.0,0.02741691]
[1762102215887,0.92823844,110160.0,110150.0,0.00013177]
[1762102218525,1.04511611,110160.0,110150.0,0.00013177]
[1762102218810,1.40474396,110160.0,110150.0,0.00013177]
[1762102219023,1.77658613,110160.0,110150.0,0.00013177]
[1762102219250,1.86640514,110160.0,110150.0,0.00013177]
[1762102224927,1.90258742,110160.0,110150.0,0.00013177]
[1762102225170,1.92703611,110160.0,110150.0,0.00013177]
[1762102225387,1.95404983,110160.0,110150.0,0.00013177]
[1762102225593,3.06957634,110160.0,110150.0,0.00013177]
[1762102225796,1.95104983,110160.0,110150.0,1e-08]
[1762102226213,1.95704983,110160.0,110150.0,1e-08]
[1762102226879,1.88897467,110160.0,110150.0,1e-08]
[1762102227081,1.93043259,110160.0,110150.0,1e-08]
[1762102227273,1.91342336,110160.0,110150.0,1e-08]
[1762102227474,1.91442336,110160.0,110150.0,1e-08]
[1762102227702,1.92442929,110160.0,110150.0,1e-08]
[1762102227839,1.92742929,110160.0,110150.0,1e-08]
[1762102228055,1.93542929,110160.0,110150.0,1e-08]
[1762102228256,1.91842336,110160.0,110150.0,1e-08]
[1762102228482,1.93542695,110160.0,110150.0,1e-08]
[1762102229760,1.91842336,110160.0,110150.0,1e-08]
[1762102230170,1.93542472,110160.0,110150.0,1e-08]
[1762102230371,1.91842336,110160.0,110150.0,1e-08]
[1762102231917,2.01409336,110160.0,110150.0,1e-08]
[1762102232988,2.01318559,110160.0,110150.0,1e-08]
[1762102233166,1.9887369,110160.0,110150.0,1e-08]
[1762102234028,1.97873691,110160.0,110150.0,1e-08]
[1762102234360,1.88306691,110160.0,110150.0,1e-08]
[1762102234886,1.7932479,110160.0,110150.0,1e-08]
[1762102236564,1.42140573,110160.0,110150.0,1e-08]
[1762102239053,0.95495852,110160.0,110150.0,1e-08]
[1762102239255,1.27533067,110160.0,110150.0,1e-08]
[1762102239425,1.29491241,110160.0,110150.0,1e-08]
[1762102239790,1.38173142,110160.0,110150.0,1e-08]
[1762102240240,1.37373142,110160.0,110150.0,1e-08]
[1762102240656,1.35614968,110160.0,110150.0,1e-08]
[1762102243839,1.26633067,110160.0,110150.0,1e-08]
[1762102244976,0.8944885,110160.0,110150.0,0.02699001]
[1762102245171,1.26633067,110160.0,110150.0,0.02699001]
[1762102245344,1.26633067,110160.0,110150.0,1e-08]
[1762102246006,0.92633067,110160.0,110150.0,0.18157059]
[1762102246182,0.92633067,110160.0,110150.0,1e-08]
[1762102246562,0.92633067,110160.0,110150.0,0.18157059]
[1762102246838,0.92633067,110160.0,110150.0,1e-08]
[1762102247112,0.92633067,110160.0,110150.0,0.18157059]
[1762102247550,0.92633067,110160.0,110150.0,1e-08]
[1762102247771,0.5544885,110160.0,110150.0,0.19715059]
[1762102247982,0.5544885,110160.0,110150.0,0.20856059]
[1762102248211,0.37384217,110160.0,110150.0,0.20856059]
[1762102248414,0.55539627,110160.0,110150.0,0.23345059]
[1762102248615,0.55539627,110160.0,110150.0,0.20856059]
[1762102250059,0.55539627,110160.0,110150.0,0.02699001]
[1762102250321,0.55539627,110160.0,110150.0,0.20856059]
[1762102250787,0.55539627,110160.0,110150.0,0.02699001]
[1762102250954,0.55539627,110160.0,110150.0,0.01141001]
[1762102251161,0.92723844,110160.0,110150.0,0.01141001]
[1762102251996,1.01705745,110160.0,110150.0,1e-08]
[1762102252522,0.64530216,110160.0,110150.0,1e-08]
[1762102254799,0.64485054,110160.0,110150.0,1e-08]
[1762102255008,0.55503153,110160.0,110150.0,1e-08]
[1762102256616,0.55503153,110160.0,110150.0,0.02699001]
[1762102257256,0.55503153,110160.0,110150.0,1e-08]
[1762102261922,0.55503153,110160.0,110150.0,0.18157059]
[1762102262130,0.55503153,110160.0,110150.0,0.19715059]
[1762102262628,0.55503153,110160.0,110150.0,0.01558001]
[1762102264011,0.55503153,110160.0,110150.0,1e-08]
[1762102264183,0.62868848,110160.0,110150.0,1e-08]
[1762102265038,0.55503153,110160.0,110150.0,1e-08]
[1762102265248,0.55503153,110160.0,110150.0,0.01558001]
[1762102266044,0.55503153,110160.0,110150.0,0.19715059]
[1762102266254,0.55503153,110160.0,110150.0,0.01558001]
[1762102266454,0.55503153,110160.0,110150.0,0.19715059]
[1762102267943,0.18310248,110160.0,110150.0,0.20856059]
[1762102268158,0.00154838,110160.0,110150.0,0.27360634]
[1762102268386,0.18310248,110160.0,110150.0,0.27360634]
[1762102268574,0.18310248,110160.0,110150.0,0.23345059]
[1762102268770,0.18310248,110160.0,110150.0,0.05188001]
[1762102268974,0.18310248,110160.0,110150.0,0.02699001]
[1762102269473,0.55503153,110160.0,110150.0,0.02699001]
[1762102271891,0.55503153,110160.0,110150.0,0.20856059]
[1762102272172,0.55503153,110160.0,110150.0,0.02699001]
[1762102272789,0.55503153,110160.0,110150.0,0.20856059]
[1762102273207,0.55503153,110160.0,110150.0,0.02699001]
[1762102280479,0.18310248,110160.0,110150.0,0.02699001]
[1762102280681,0.18310248,110160.0,110150.0,0.23140059]
[1762102280899,0.18310248,110160.0,110150.0,0.04983001]
[1762102281109,0.18310248,110160.0,110150.0,0.02699001]
[1762102281306,0.18310248,110160.0,110150.0,0.23140059]
[1762102282699,0.00154838,110160.0,110150.0,0.23140059]
[1762102282980,0.18310248,110160.0,110150.0,0.23140059]
[1762102283211,0.00154838,110160.0,110150.0,0.23140059]
[1762102283469,0.18310248,110160.0,110150.0,0.23140059]
[1762102285190,0.18310248,110160.0,110150.0,0.04983001]
[1762102285407,0.18310248,110160.0,110150.0,0.02699001]
[1762102285621,0.55503153,110160.0,110150.0,0.02699001]
[1762102287229,0.62868848,110160.0,110150.0,1e-08]
[1762102287625,0.55503153,110160.0,110150.0,0.01620001]
[1762102288078,0.55503153,110160.0,110150.0,0.02775001]
[1762102293474,0.55503153,110160.0,110150.0,1e-08]
[1762102294213,0.55503153,110160.0,110150.0,0.19777059]
[1762102295483,0.55503153,110160.0,110150.0,0.20932059]
[1762102295728,0.00154838,110160.0,110150.0,0.23263059]
[1762102296670,0.18310248,110160.0,110150.0,0.23263059]
[1762102297821,0.00154838,110160.0,110150.0,0.23263059]
[1762102298951,0.18310248,110160.0,110150.0,0.23263059]
[1762102299405,0.18310248,110160.0,110150.0,0.05106001]
[1762102299646,0.55503153,110160.0,110150.0,0.23263059]
[1762102300515,0.37347743,110160.0,110150.0,0.23263059]
[1762102300724,0.55503153,110160.0,110150.0,0.23263059]
[1762102303252,0.37347743,110160.0,110150.0,0.23263059]
[1762102308617,0.37347743,110160.0,110150.0,0.27792178]
[1762102308842,0.37347743,110160.0,110150.0,0.23263059]
[1762102314298,0.00154838,110160.0,110150.0,0.23263059]
[1762102314509,0.37337873,110160.0,110150.0,0.23263059]
[1762102317306,0.00154838,110160.0,110150.0,0.25991325]
[1762102317590,0.00154838,110160.0,110150.0,0.34238727]
[1762102317836,0.37337873,110160.0,110150.0,0.34238727]
[1762102318045,0.37337873,110160.0,110150.0,0.25991325]
[1762102320733,0.00154838,110160.0,110150.0,0.25991325]
[1762102320928,0.37337873,110160.0,110150.0,0.25991325]
[1762102321311,0.00154838,110160.0,110150.0,0.25991325]
[1762102321559,0.00154838,110160.0,110150.0,0.6317436]
[1762102321704,0.00154838,110160.0,110150.0,0.72156261]
[1762102321905,0.00154838,110160.0,110150.0,1.09774489]
[1762102322148,0.00154838,110160.0,110150.0,0.72591454]
[1762102322351,0.00154838,110160.0,110150.0,1.09774489]
[1762102322790,0.3914526,110190.0,110180.0,0.18152114]
[1762102323024,0.37183035,110190.0,110180.0,0.23857563]
[1762102323440,0.37183035,110200.0,110190.0,0.18150467]
[1762102323661,0.01086033,110210.0,110200.0,0.1814882]
[1762102323877,0.35086033,110210.0,110200.0,0.2084082]
[1762102324440,0.01086033,110210.0,110200.0,0.2325682]
[1762102324862,0.38269068,110210.0,110200.0,0.2325682]
[1762102325033,0.00192723,110210.0,110200.0,0.27515249]
[1762102325662,0.00192723,110210.0,110200.0,0.64698284]
[1762102326206,0.00392723,110210.0,110200.0,0.27515249]
[1762102326406,0.00192723,110210.0,110200.0,0.27515249]
[1762102326869,0.00292723,110210.0,110200.0,0.27815249]
[1762102327284,0.00192723,110210.0,110200.0,0.27815249]
[1762102327735,0.00192723,110210.0,110200.0,0.28315249]
[1762102332271,0.37375758,110210.0,110200.0,0.31042074]
[1762102334294,0.00192723,110210.0,110200.0,0.31042074]
[1762102335319,0.37375758,110210.0,110200.0,0.65042074]
[1762102336718,0.00192723,110210.0,110200.0,0.65042074]
[1762102336923,0.37375758,110210.0,110200.0,0.65042074]
[1762102337116,0.00192723,110210.0,110200.0,0.65042074]
[1762102341957,0.00192723,110210.0,110200.0,1.05843337]
[1762102342194,0.00192723,110210.0,110200.0,1.20643337]
[1762102342394,1e-08,110210.0,110200.0,1.57826372]
[1762102342930,1e-08,110210.0,110200.0,1.57326372]
[1762102343159,1e-08,110210.0,110200.0,1.57026372]
[1762102343394,1e-08,110210.0,110200.0,1.59926372]
[1762102343621,1e-08,110210.0,110200.0,1.22743337]
[1762102343819,1e-08,110210.0,110200.0,1.29499405]
[1762102347506,1e-08,110210.0,110200.0,0.9231637]
[1762102347720,1e-08,110210.0,110200.0,1.29499405]
[1762102348608,1e-08,110210.0,110200.0,0.9231637]
[1762102348808,1e-08,110210.0,110200.0,1.29499405]
[1762102352579,1e-08,110210.0,110200.0,4.30499404]
[1762102353198,0.37183035,110240.0,110230.0,0.1933488]
[1762102353406,0.37197566,110240.0,110230.0,0.28091352]
[1762102353603,0.0008073,110240.0,110230.0,0.28091352]
[1762102353830,0.0008073,110240.0,110230.0,0.30817225]
[1762102354041,0.37263765,110240.0,110230.0,0.31724419]
[1762102354452,0.744468,110240.0,110230.0,0.32324419]
[1762102355302,0.744468,110240.0,110230.0,0.31724419]
[1762102355503,0.744468,110240.0,110230.0,0.32024419]
[1762102355712,0.744468,110240.0,110230.0,0.32324419]
[1762102355921,0.744468,110240.0,110230.0,0.32024419]
[1762102356121,0.744468,110240.0,110230.0,0.32224419]
[1762102356932,0.744468,110240.0,110230.0,0.31924419]
[1762102357066,0.744468,110240.0,110230.0,0.32124419]
[1762102362398,0.92589035,110240.0,110230.0,0.32124419]
[1762102363011,0.744468,110240.0,110230.0,0.32124419]
[1762102369030,0.744468,110240.0,110230.0,0.13073345]
[1762102369243,1.2977207,110240.0,110230.0,0.1854388]
[1762102369881,1.2977207,110240.0,110230.0,0.02029]
[1762102370097,1.2977207,110240.0,110230.0,0.2017288]
[1762102370516,1.2977207,110240.0,110230.0,0.02029]
[1762102371000,1.2977207,110240.0,110230.0,0.01829]
[1762102371955,1.2977207,110240.0,110230.0,0.01629]
[1762102372183,1.2987207,110240.0,110230.0,0.01629]
[1762102372622,1.2987207,110240.0,110230.0,0.1977288]
[1762102373099,1.2987207,110240.0,110230.0,0.01629]
[1762102373596,0.1814388,110230.0,110220.0,0.24493923]
[1762102373810,0.9250995,110230.0,110220.0,0.28967719]
[1762102374027,0.92554086,110230.0,110220.0,0.30596719]
[1762102374469,0.55330779,110230.0,110220.0,0.30596719]
[1762102374939,0.55330779,110230.0,110220.0,0.30796719]
[1762102375602,0.55330779,110230.0,110220.0,0.30996719]
[1762102377146,0.37186899,110230.0,110220.0,0.30996719]
[1762102378243,0.00044136,110230.0,110220.0,0.30996719]
[1762102378467,0.37186899,110230.0,110220.0,0.30996719]
[1762102386844,0.55330779,110230.0,110220.0,0.30996719]
[1762102388525,0.55330779,110230.0,110220.0,0.24091923]
[1762102388729,0.55330779,110230.0,110220.0,0.05946396]
[1762102389369,0.55330779,110230.0,110220.0,0.24091923]
[1762102389579,0.55330779,110230.0,110220.0,0.05946396]
[1762102390059,0.55330779,110230.0,110220.0,0.24091923]
[1762102390271,0.55330779,110230.0,110220.0,0.28768619]
[1762102390677,0.55330779,110230.0,110220.0,0.31199619]
[1762102391442,0.55330779,110230.0,110220.0,0.28473223]
[1762102391840,0.55330779,110230.0,110220.0,0.10327696]
[1762102392152,0.55330779,110230.0,110220.0,0.28473223]
[1762102392377,0.55330779,110230.0,110220.0,0.10327696]
[1762102392580,0.55330779,110230.0,110220.0,0.28473223]
[1762102393191,0.55330779,110230.0,110220.0,0.10327696]
[1762102393389,0.55330779,110230.0,110220.0,0.28473223]
[1762102393565,0.55330779,110230.0,110220.0,0.10327696]
[1762102393765,0.55330779,110230.0,110220.0,0.26042223]
[1762102394008,0.55330779,110230.0,110220.0,0.07896696]
[1762102394201,0.55330779,110230.0,110220.0,0.26042223]
[1762102394400,0.55330779,110230.0,110220.0,0.07896696]
[1762102394604,0.55330779,110230.0,110220.0,0.26042223]
[1762102394892,0.55330779,110230.0,110220.0,0.07896696]
[1762102395124,0.55330779,110230.0,110220.0,0.26042223]
[1762102395355,0.55330779,110230.0,110220.0,0.07896696]
[1762102395576,0.55330779,110230.0,110220.0,0.0322]
[1762102396260,0.92473542,110230.0,110220.0,0.002]
[1762102396498,0.18145527,110220.0,110210.0,0.19338057]
[1762102396706,0.92431053,110220.0,110210.0,0.01191]
[1762102396912,0.92431053,110220.0,110210.0,0.02716]
[1762102397125,0.92453123,110220.0,110210.0,0.09085669]
[1762102397759,0.92453123,110220.0,110210.0,0.09285669]
[1762102398154,0.92453123,110220.0,110210.0,0.27432842]
[1762102398356,0.92453123,110220.0,110210.0,0.09285669]
[1762102399138,0.92453123,110220.0,110210.0,0.27432842]
[1762102399345,0.92453123,110220.0,110210.0,0.09485669]
[1762102399717,0.92453123,110220.0,110210.0,0.27632842]
[1762102400343,0.92453123,110220.0,110210.0,0.09485669]
[1762102400526,0.92453123,110220.0,110210.0,0.27632842]
[1762102401157,0.92453123,110220.0,110210.0,0.09485669]
[1762102401445,0.92453123,110220.0,110210.0,0.27632842]
[1762102401863,0.92453123,110220.0,110210.0,0.09485669]
[1762102402096,0.92453123,110220.0,110210.0,0.27632842]
[1762102402263,0.92453123,110220.0,110210.0,0.09485669]
[1762102402921,0.92453123,110220.0,110210.0,0.004]
[1762102404584,0.92453123,110220.0,110210.0,0.002]
[1762102405017,0.0002207,110220.0,110210.0,0.23416173]
[1762102405225,0.5531036,110220.0,110210.0,0.23216173]
[1762102405639,0.5541036,110220.0,110210.0,0.23216173]
[1762102406044,0.5531036,110220.0,110210.0,0.23216173]
[1762102406371,0.5531036,110220.0,110210.0,0.23416173]
[1762102406988,0.5531036,110220.0,110210.0,0.23616173]
[1762102407190,0.5531036,110220.0,110210.0,0.27890372]
[1762102411125,0.37164833,110220.0,110210.0,0.27890372]
[1762102415416,0.37157132,110220.0,110210.0,0.27890372]
[1762102416722,0.00014369,110220.0,110210.0,0.27890372]
[1762102417378,0.37157132,110220.0,110210.0,0.27890372]
[1762102435304,0.37157132,110220.0,110210.0,0.09743199]
[1762102435515,0.55302659,110220.0,110210.0,0.25543372]
[1762102435728,0.37157132,110220.0,110210.0,0.25543372]
[1762102435938,0.55302659,110220.0,110210.0,0.27795372]
[1762102436563,0.92452498,110220.0,110210.0,0.27795372]
[1762102437877,0.92452498,110220.0,110210.0,0.23521173]
[1762102441405,0.92452498,110220.0,110210.0,0.03122]
[1762102441827,0.92452498,110220.0,110210.0,0.004]
[1762102441999,0.92452498,110220.0,110210.0,0.01998]
[1762102443939,0.92452498,110220.0,110210.0,0.0317]
[1762102444606,0.92452498,110220.0,110210.0,0.05644781]
[1762102444859,0.92452498,110220.0,110210.0,0.02874781]
[1762102445088,0.92452498,110220.0,110210.0,0.004]
[1762102445714,1.29598799,110220.0,110210.0,0.002]
[1762102445962,0.18147173,110210.0,110200.0,0.01177]
[1762102446170,0.55293474,110210.0,110200.0,0.1932582]
[1762102446397,0.55293474,110210.0,110200.0,0.2092382]
[1762102447224,0.37146301,110210.0,110200.0,0.27511801]
[1762102447666,0.55293474,110210.0,110200.0,0.27511801]
[1762102447868,0.37146301,110210.0,110200.0,0.27511801]
[1762102448943,0.55293474,110210.0,110200.0,0.27711801]
[1762102449374,0.55293474,110210.0,110200.0,0.27911801]
[1762102452105,0.55293474,110210.0,110200.0,0.03175]
[1762102452309,0.55293474,110210.0,110200.0,0.004]
[1762102452484,0.92439775,110210.0,110200.0,0.004]
[1762102453098,0.1814882,110200.0,110190.0,0.19276315]
[1762102453449,0.92441422,110200.0,110190.0,0.19276315]
[1762102453675,0.92441422,110200.0,110190.0,0.27578552]
[1762102454012,0.92441422,110200.0,110190.0,0.02724]
[1762102454217,0.92441422,110200.0,110190.0,0.20874467]
[1762102454425,0.92441422,110200.0,110190.0,0.02724]
[1762102455056,0.92441422,110200.0,110190.0,0.23247467]
[1762102455265,0.92441422,110200.0,110190.0,0.23447467]
[1762102455826,0.92441422,110200.0,110190.0,0.23647467]
[1762102456225,0.92441422,110200.0,110190.0,0.2831162]
[1762102456654,0.92441422,110200.0,110190.0,0.10161153]
[1762102456859,0.92441422,110200.0,110190.0,0.2831162]
[1762102457277,0.74292602,110200.0,110190.0,0.2831162]
[1762102457490,0.74292602,110200.0,110190.0,0.31038891]
[1762102457711,0.18147275,110210.0,110190.0,0.31038891]
[1762102457938,0.37146301,110210.0,110200.0,0.2319582]
[1762102458139,0.37146301,110210.0,110200.0,0.28312943]
[1762102458350,0.37146301,110210.0,110200.0,0.31040142]
[1762102458976,0.37246301,110210.0,110200.0,0.31040142]
[1762102459399,0.37146301,110210.0,110200.0,0.31040142]
[1762102459611,0.37246301,110210.0,110200.0,0.31040142]
[1762102462629,0.001,110210.0,110200.0,0.31040142]